Cogmind - Beta 13 @@@ ROGUE MODE // 2024.05.01 @ 19:03:35 Player: Waste Result: Destroyed by YI-UF0 with YI-UF0's Doublenader Performance ------------- Evolutions (0) 0 Regions Visited (2) 400 Robots Destroyed (16) 80 Value Destroyed (347) 347 Prototype IDs (0) 0 Alien Tech Used (0) 0 Bonus (0) 0 TOTAL SCORE: 827 Bonus ------- None Cogmind --------- Core Integrity 0/250 Matter 270/300 Energy 22/100 System Corruption 0% Temperature Cool (11) Movement Treading (160) Location -10/Mines Parts ------- > --- POWER (1) -------- (None) > --- PROPULSION (2) --- Light Treads Light Treads > --- UTILITY (2) ------ Improved Heat Sink Large Storage Unit > --- WEAPON (2) ------- Particle Gun > --- INVENTORY (15) --- Ion Engine Wheel Compact Wheel Cooling System Cooling System Cooling System Grenade Launcher Peak State ------------ > --- POWER ------------ Ion Engine > --- PROPULSION ------- Aluminum Leg Aluminum Leg > --- UTILITY ---------- Cooling System Large Storage Unit > --- WEAPON ----------- Particle Gun Particle Gun > --- INVENTORY -------- Ion Engine Ion Engine Light Treads Light Treads Aluminum Leg Wheel Compact Wheel Improved Heat Sink Cooling System Cooling System Cooling System Particle Gun Beam Cannon Light Assault Rifle [Rating: 12] Favorites ----------- Power Ion Engine Engine Ion Engine Propulsion Aluminum Leg Treads Light Treads Leg Aluminum Leg Utility Large Storage Unit Device Cooling System Storage Large Storage Unit Weapon Particle Gun Energy Gun Particle Gun Energy Cannon Beam Cannon Ballistic Gun Light Assault Rifle Build | -11 -10 -10 ------- Run | Yrd Mat Min Slots Evolved . | . . . Power . | . . . Propulsion . | . . . Utility . | . . . Weapon . | . . . Parts Attached 26 | 1 18 7 Power 2 | . 1 1 Engine 2 | . 1 1 Core . | . . . Reactor . | . . . Propulsion 8 | . 5 3 Treads 2 | . . 2 Leg 6 | . 5 1 Wheel . | . . . Hover . | . . . Flight . | . . . Utility 7 | . 6 1 Device 5 | . 4 1 Storage 2 | . 2 . Processor . | . . . Hackware . | . . . Protection . | . . . Artifact . | . . . Weapon 9 | 1 6 2 Energy Gun 8 | 1 6 1 Energy Cannon 1 | . . 1 Ballistic Gun . | . . . Ballistic Cannon . | . . . Launcher . | . . . Special Weapon . | . . . Impact Weapon . | . . . Slashing Weapon . | . . . Piercing Weapon . | . . . Special Melee Weapon . | . . . Unidentified Prototypes . | . . . Parts Lost 9 | . . 9 Power 2 | . . 2 Propulsion 3 | . . 3 Utility 1 | . . 1 Weapon 3 | . . 3 Highest Loss Streak 9 | . . 9 To Critical Strikes . | . . . Average Slot Usage (%) 93 | . 89 99 Engine 13 | . 13 13 Leg 27 | . 27 27 Device 11 | . 9 14 Storage 14 | . 14 14 Energy Gun 20 | . 15 27 Ballistic Gun 5 | . 8 . Naked Turns . | . . . Heaviest Build 33 | 13 33 33 Greatest Support 20 | 20 20 20 Greatest Overweight (x) 7 | . 7 1 Average Overweight (x) . | . . 1 Largest Inventory Capacity 15 | 8 15 15 Average Capacity 13 | 8 12 15 Most Carried 15 | 6 15 14 Average Carried 11 | 6 11 12 Final Capacity 15 | 8 15 15 Final Carried 13 | 6 13 7 Class Distribution -------------------- 100% | Mutant Dominant Class ---------------- Mutant | -10/Materials Mutant | -10/Mines Resources | -11 -10 -10 ----------- Run | Yrd Mat Min Matter Collected 391 | 200 73 118 Remotely . | . . . Salvage Created 473 | . 327 146 Parts 29 | . 24 5 Haulers Intercepted . | . . . Recyclers Shooed 2 | . 1 1 Parts Field Recycled . | . . . Retrieved Matter . | . . . Parts Self-Destructed . | . . . Prevented . | . . . Kills | -11 -10 -10 ------- Run | Yrd Mat Min Combat Hostiles Destroyed 13 | . 11 2 Guns 13 | . 11 2 Classes Destroyed 5 | . 4 1 Worker 1 | . 1 . Recycler 1 | . . 1 Watcher 1 | . 1 . Swarmer 6 | . 6 . Grunt 7 | . 5 2 Best Kill Streak 3 | . 3 3 Combat Bots Only 3 | . 3 2 Max Kills in Single Turn 1 | . 1 1 Gunslinging . | . . . Exploded . | . . . Melee . | . . . Uniques/NPCs Destroyed . | . . . Combat | -11 -10 -10 -------- Run | Yrd Mat Min Hostile Shots Fired 85 | . 47 38 Missed 22 | . 11 11 Damage Taken 1234 | . 389 845 Core 256 | . 116 140 Absorbed by Shields . | . . . Core Remaining (%) 100 | 100 . . Volleys Fired 50 | . 39 11 Largest 2 | . 2 2 Hottest 130 | . 130 130 Shots Fired 95 | . 73 22 Gun 91 | . 73 18 Cannon 4 | . . 4 Launcher . | . . . Special . | . . . Kinetic 31 | . 31 . Thermal 64 | . 42 22 Explosive . | . . . Electromagnetic . | . . . Robot Hit Streak 11 | . 9 11 Robot Miss Streak 2 | . 2 2 Penetration Max . | . . . Secondary Targets 1 | . 1 . Max Gunslinging Chain 1 | . 1 . Shots Hit Robots 62 | . 45 17 Core Hits 26 | . 20 6 Critical Kills . | . . . Critical Parts Destroyed . | . . . Critical Strikes 7 | . 6 1 Burn 7 | . 6 1 Melee Attacks . | . . . Impact . | . . . Slashing . | . . . Piercing . | . . . Sneak Attacks . | . . . Combat Hostiles . | . . . Follow-up Attacks . | . . . Damage Inflicted 847 | . 552 295 Guns 786 | . 532 254 Cannons 36 | . . 36 Explosions . | . . . Melee . | . . . Ramming 25 | . 20 5 Kinetic 112 | . 112 . Thermal 710 | . 420 290 Explosive . | . . . Electromagnetic . | . . . Impact . | . . . Slashing . | . . . Piercing . | . . . Highest Corruption . | . . . Average Corruption . | . . . Corruption Purged . | . . . Corruption Blocked . | . . . Overload Shots . | . . . Overflow Damage . | . . . Projectiles . | . . . Explosions . | . . . Melee . | . . . Knockbacks . | . . . Impact . | . . . Kinetic . | . . . Secondary . | . . . Self-Inflicted Damage . | . . . Shots . | . . . Rammed . | . . . Targets Rammed 9 | . 6 3 Kicked 9 | . 6 3 Crushed . | . . . Highest Temperature 116 | . 116 66 Average Temperature 23 | . 19 39 Received Heat Transfer 210 | . 156 54 Siege Activations . | . . . Robots Corrupted . | . . . Combat Hostiles . | . . . Parts Fried . | . . . Impact Corruptions . | . . . Robots Melted . | . . . Combat Hostiles . | . . . Parts Melted 4 | . 4 . Heat Transferred 2294 | . 1591 703 Parts Sabotaged . | . . . Parts Stolen . | . . . Parts Stripped . | . . . Power Chain Reactions . | . . . Alert | -11 -10 -10 ------- Run | Yrd Mat Min Peak Influence 216 | . 216 55 Initial . | . . . Average 69 | . 89 38 Maximum Alert Level 1 | . 1 . Low Security (%) 91 | 100 86 100 Level 1 8 | . 13 . Level 2 . | . . . Level 3 . | . . . Level 4 . | . . . Level 5 . | . . . High Security . | . . . Max Security . | . . . Squads Dispatched 2 | . 2 . Investigation 2 | . 2 . Extermination . | . . . Reinforcement . | . . . Assault . | . . . Garrison . | . . . Intercept . | . . . Searches Triggered . | . . . Construction Impeded . | . . . Haulers Reinforced . | . . . Active Scanning Responses . | . . . Cargo Convoy Interrupts . | . . . Stealth | -11 -10 -10 --------- Run | Yrd Mat Min Distress Signals . | . . . Communications Jammed . | . . . Distress Signals . | . . . Times Spotted 20 | . 17 3 Peak Tracking Total 4 | . 4 2 Tactical Retreats . | . . . Traps | -11 -10 -10 ------- Run | Yrd Mat Min Traps Triggered 7 | . 7 . Indirectly . | . . . Trap Hack Attempts . | . . . Triggered . | . . . Disarmed . | . . . Reprogrammed . | . . . Reused . | . . . Traps Extracted . | . . . Installed . | . . . Triggered . | . . . Machines | -11 -10 -10 ---------- Run | Yrd Mat Min Machines Disabled . | . . . Max in Single Turn . | . . . Machines Repaired . | . . . Machines Dismantled . | . . . Machines Sabotaged . | . . . Overloaded Fab Kills . | . . . Hacking | -11 -10 -10 --------- Run | Yrd Mat Min Machines Accessed 5 | . 4 1 Terminals 5 | . 4 1 Fabricators . | . . . Repair Stations . | . . . Recycling Units . | . . . Scanalyzers . | . . . Garrison Access . | . . . Total Hacks 15 | . 12 3 Successful 6 | . 6 . Failed 8 | . 5 3 Catastrophic 1 | . . 1 Database Lockouts 1 | . 1 . Manual 16 | . 13 3 Terminals 15 | . 12 3 Fabricators . | . . . Repair Stations . | . . . Recycling Units . | . . . Scanalyzers . | . . . Garrison Access . | . . . Terminal Hacks 2 | . 2 . Robot Analysis 2 | . 2 . Fabricator Hacks . | . . . Repair Station Hacks . | . . . Recycling Unit Hacks . | . . . Scanalyzer . | . . . Garrison Access Hacks . | . . . Unauthorized Hacks 4 | . 4 . Terminals 4 | . 4 . Track 1 | . 1 . Assimilate 1 | . 1 . Botnet 2 | . 2 . Fabricators . | . . . Repair Stations . | . . . Recycling Units . | . . . Scanalyzers . | . . . Garrison Access . | . . . Data Cores Recovered . | . . . Used . | . . . Hacking Detections 5 | . 4 1 Full Trace Events . | . . . Feedback Events . | . . . Feedback Blocked . | . . . Robot Schematics Acquired . | . . . Robots Built . | . . . Authchips . | . . . Time . | . . . Total Robot Build Rating . | . . . Part Schematics Acquired . | . . . Parts Built . | . . . Authchips . | . . . Time . | . . . Total Part Build Rating . | . . . Parts Repaired . | . . . Time . | . . . Parts Recycled . | . . . Recycled Matter . | . . . Retrieved Matter . | . . . Retrieved Components . | . . . Parts Scanalyzed . | . . . Part Schematics Acquired . | . . . Parts Damaged . | . . . Bothacking | -11 -10 -10 ------------ Run | Yrd Mat Min Used RIF Installer . | . . . Robots Hacked . | . . . Non-combat . | . . . Combat . | . . . Robot Hacks Applied . | . . . Relay Couplers Released . | . . . Fabnet Peak Effective % . | . . . Robots Rewired . | . . . Allies Hacked . | . . . Hacks Repelled . | . . . Allies | -11 -10 -10 -------- Run | Yrd Mat Min Total Allies . | . . . Largest Group . | . . . Highest-Rated Group . | . . . Highest-Rated Ally . | . . . Total Orders . | . . . Ally Attacks . | . . . Total Damage . | . . . Kills . | . . . Allies Corrupted . | . . . Allies Melted . | . . . Intel | -11 -10 -10 ------- Run | Yrd Mat Min Robot Analysis Total 2 | . 2 . Derelict Logs Recovered . | . . . Drone Launches . | . . . Drone Recoveries . | . . . Exploration | -11 -10 -10 ------------- Run | Yrd Mat Min Turns Passed 1367 | 2 827 538 Spaces Moved 660 | 1 403 256 Core 2 | . 2 . Treads . | . . . Legs 658 | 1 401 256 Wheels . | . . . Hover . | . . . Flight . | . . . Fastest Speed 120 | 120 120 190 Average Speed 170 | 120 157 190 Slowest Speed 400 | 120 400 190 Overloaded Moves . | . . . Propulsion Burnouts . | . . . Robots Hopped . | . . . Cave-ins Triggered . | . . . Exploration Rate (%) 44 | 2 78 52 Regions Visited 2 Branch Regions 1 Pre-discovered Areas . | . . . Known Exits Taken . | . . . Unknown Exits Taken 2 | 1 1 . Scrap Searched 2 | . . 2 Spaces Dug . | . . . Terrain Destroyed . | . . . Melee . | . . . Projectile . | . . . AOE . | . . . Terrain Rammed . | . . . Walls Destroyed . | . . . Machines Disabled . | . . . Actions | -11 -10 -10 --------- Run | Yrd Mat Min Total 805 | 1 522 282 Wait 47 | . 43 4 Move 658 | . 402 256 Hop . | . . . Pick Up 8 | . 7 1 Fast Attach 12 | . 12 . Attach 8 | . 1 7 Detach 1 | . 1 . Swap 6 | 1 5 . Drop 6 | . 6 . Fire 50 | . 39 11 Melee . | . . . Ram . | . . . Kick 9 | . 6 3 Crush . | . . . Escape Stasis . | . . . Rewire . | . . . Trap . | . . . Miscellaneous . | . . . Route ------- -11/Scrapyard -10/Materials (discovered 5 exits: [*Mat x3] / *Min x2) -10/Mines (discovered 2 exits: [*Mat x2]) History --------- Turn | Location | Event 3 | -11/Scrapyard | Discovered new exit (range 0) 3 | -11/Scrapyard | Entered Materials 3 | -10/Materials | Discovered new exit (range 14) 120 | -10/Materials | Central database locked down 125 | -10/Materials | Discovered new exit (range 11) 304 | -10/Materials | Discovered new exit (range 5) 316 | -10/Materials | Build established: Mutant 431 | -10/Materials | Discovered new exit (range 3) 807 | -10/Materials | Discovered new exit (range 13) 830 | -10/Materials | Entered Mines 848 | -10/Mines | Core integrity fell below 50% 973 | -10/Mines | Discovered new exit (range 9) 1289 | -10/Mines | YI-UF0 nonchalantly dropped a Grenade Launcher on the ground 1309 | -10/Mines | Discovered new exit (range 5) 1357 | -10/Mines | Core integrity fell below 20% 1368 | -10/Mines | Destroyed by YI-UF0 with YI-UF0's Doublenader Last Messages --------------- 01261_ K-01 Serf collects debris. 01264_ K-01 Serf cleans the Laser Drill. 01268_ K-01 Serf collects debris. 01289_ YI-UF0 nonchalantly drops a Grenade Launcher on the ground. 01295_ Acquired Grenade Launcher. 01309_ EXIT=FOUND 01346_ Aluminum Leg destroyed. 01348_ Ion Engine destroyed. 01350_ Particle Gun destroyed. 01351_ The unstable cave ceiling collapses. 01352_ Aluminum Leg destroyed. 01353_ The unstable cave ceiling collapses. 01360_ Particle Gun destroyed. 01360_ Aluminum Leg destroyed. 01362_ The unstable cave ceiling collapses. 01362_ Cooling System destroyed. 01363_ The unstable cave ceiling collapses. 01366_ Beam Cannon destroyed. 01366_ Ion Engine destroyed. 01367_ The unstable cave ceiling collapses. Map ----- +----------------------------------------------------+ | | | | | | | | | | | | | | | | | | | | | | | | | | | | | | | | | | | | | | | | | | | ?????????????????????# #????????? | | ????????????????####?# #????????? | | ???????##??????## ### ##???????? | | ??????## #?????# #???????? | | ??????# ###?## # @ #????????? | | ??????# ## ## # #????????? | | ??????# #### ?????? | | ?????## ##??# # #????? | | ????## ##???## g ? ??? | | ????# ##?????## != ?? #? | | ????# #???????# ?? #? | | ##??## < #???????# # ???? | | ##??#### ##???????## # ??? | | ####??## ##?????????? ## #########?? | | #???### #???????????#??##?????????? | | #????# #?????????????????????????? | | # #???# #?????????????????????????? | | ## #??# #?????????????????????????? | | ?### #?# #?????????????????????????? | | ????## ## ##### #???????????????????? | | ####??# ## #???????????????????? | | # ##??##### #######???????????????????? | | #??????# #?????????????????????????? | | ##?????# #?????????????????????????? | | #?????# #?????????????????????????? | | # ####### #?????????????????????????? | | ## #?????????????????????????? | | ?# """ #?????????????????????????? | | ?# """ ######?????????????????????????? | +----------------------------------------------------+ Best States ------------- Heat Dissipation 47 Energy Generation 10 Energy Capacity 250 Matter Stores 300 Matter Capacity 300 Sight Range 16 Terrain Scan Density 10 Evasion (%) 55 Recoil Reduction 1 Item Schematics ----------------- None Robot Schematics ------------------ None Fabricated ------------ Nothing Alien Tech Used ----------------- None Achievements -------------- None Challenges ------------ None Game ------ Seed MasterHardcellTrap Manual? 0 Play Time 00:07:32 Cumulative 206.6 hours Start 2024.05.01 @ 18:57:38 End 2024.05.01 @ 19:03:35 Sessions 1 Manual Loads 0 Difficulty Rogue Special Mode None Game No. 271 Rogue 271 Adventurer 0 Explorer 0 Win Type - Total 6 Types 2/1/0/1/1/0/0/1/0 Lore% 70 Gallery% 78 Achievement% 67 Wizard Run 0 Options --------- Layout 0 ASCII 0 Keyboard 0 Movement Numpad Keybinds 0 Fullscreen 1 Font 18/SmallcapsGlow Map View 76x50 Zoom Use 0% Tactical HUD 1 Map Filters NONE Filters NONE Steam 1 RUN: e35ca3a8-d644-4634-8073-e6041fe3438e